Workbook

Sheet Example
E3: Name
B4: BUDGET | D4: ACTUAL | E4: Date | F4: 2022-10-14 | G4: 2022-10-21 | H4: 2022-10-28 | I4: 2022-10-31
A5: INCOME | B5: =SUM(B6:B9) -> 7300 | D5: =SUM(D6:D7) -> 0
A6: Mary | B6: 4000 | F6: 2000 | I6: 2000
A7: Ben | B7: 2800 | F7: 1400 | H7: 1400
A8: Ben - side gig | B8: 500 | G8: 500
A10: EXPENSES | B10: =SUM(B11,B15,B22,B25,B30,B37,B39,B43,B49,B52,B55,B64) -> 7300 | D10: =D49+D43+D11+D15+D22+D25+D52+D30+D64+D39+D55 -> 0
A11: HOUSING | B11: =SUM(B12:B14) -> 1400 | D11: =SUM(D12:D14) -> 0
A12: Mortgage/Rent | B12: 1400 | I12: 1400
A13: Lawncare
A14: Household Repairs/Maintenance
A15: UTILITIES | B15: =SUM(B16:B21) -> 485 | D15: =SUM(D16:D21) -> 0
A16: Electricity | B16: 100 | F16: 100
A17: Water | B17: 50 | F17: 50
A18: Gas | B18: 60 | F18: 60
A19: Cell Phone | B19: 125 | H19: 125
A20: Home Security | B20: 50 | G20: 50
A21: Cable/Internet | B21: 100 | F21: 100
A22: GROCERIES/HOUSEHOLD SUPPLIES | B22: =SUM(B23:B24) -> 510 | D22: =SUM(D23:D24) -> 0
A23: Groceries | B23: 450 | F23: 115 | G23: 120 | H23: 110 | I23: 105
A24: Household Supplies | B24: 60 | F24: 15 | G24: 15 | H24: 15 | I24: 15
A25: TRANSPORTATION | B25: =SUM(B26:B29) -> 515 | D25: =SUM(D26:D29) -> 0
A26: Gasoline | B26: 300 | F26: 75 | G26: 75 | H26: 75 | I26: 75
A27: Auto Service & Repairs | B27: 55 | F27: 55
A28: Car Insurance | B28: 110 | I28: 110
A29: License Plates & Registrations | B29: 50 | H29: 50
A30: INSURANCE/MEDICAL | B30: =SUM(B31:B36) -> 170 | D30: =SUM(D32:D36) -> 0
A31: Homeowners/Renters Insurance | B31: 50 | G31: 50
A32: Disability Insurance
A33: Health Insurance
A34: Doctor/Dentist | B34: 50 | F34: 30 | I34: 20
A35: Medications | B35: 25 | I35: 25
A36: Life Insurance | B36: 45 | G36: 45
A37: SAVINGS | B37: =SUM(B38) -> 250 | D37: =SUM(D38) -> 0
A38: Emergency Fund | B38: 250 | F38: 205 | G38: 45
A39: DEBTS | B39: =SUM(B40:B42) -> 1025 | D39: =SUM(D40:D42) -> 0
A40: Car Payment | B40: 475 | H40: 475
A41: Credit Card | B41: 150 | F41: 150
A42: Student Loan | B42: 400 | F42: 400
A43: FUTURE SAVINGS | B43: =SUM(B44:B48) -> 1150 | D43: =SUM(D44:D48) -> 0
A44: House Down Payment | B44: 500 | F44: 500
A45: New Car Savings | B45: 150 | F45: 150
A46: Vacations | B46: 100 | F46: 100
A47: Other | B47: 400 | F47: 400
A48: Children's Expenses
A49: CHARITABLE GIFTS | B49: =SUM(B50:B51) -> 100 | D49: =SUM(D50:D51) -> 0
A50: Charity 1 | B50: 50 | G50: 50
A51: Charity 2 | B51: 50 | H51: 50
A52: CLOTHING | B52: =SUM(B53:B54) -> 100 | D52: =SUM(D53:D54) -> 0
A53: Clothing | B53: 100 | H53: 50 | I53: 50
A54: Dry Cleaning
A55: PERSONAL | B55: =SUM(B56:B63) -> 895 | D55: =SUM(D56:D61) -> 0
A56: Household Furnishings
A57: Pocket Money | B57: 400 | F57: 400
A58: Personal Care | B58: 125 | H58: 125
A59: Education
A60: Gifts | B60: 100 | F60: 100
A61: Pets | B61: 75 | F61: 50 | H61: 25
A62: Subscriptions | B62: 95 | F62: 95
A63: Miscellaneous | B63: 100 | F63: 50 | I63: 50
A64: RECREATION | B64: =SUM(B65:B66) -> 700 | D64: =SUM(D65:D66) -> 0
A65: Restaurants/Eating Out | B65: 500 | F65: 150 | G65: 50 | H65: 200 | I65: 100
A66: Entertainment | B66: 200 | F66: 50 | H66: 100 | I66: 50
A67: Subtotal | B67: =SUM(B65:B66,B56:B63,B53:B54,B50:B51,B44:B48,B40:B42,B38,B31:B36,B26:B29,B23:B24,B16:B21,B12:B14) -> 7300 | D67: =SUM(D65:D66,D56:D63,D53:D54,D50:D51,D44:D48,D40:D42,D38,D32:D36,D26:D29,D23:D24,D16:D21,D12:D14) -> 0 | F67: =SUM(F65:F66,F56:F63,F53:F54,F50:F51,F44:F48,F40:F42,F38,F31:F36,F26:F29,F23:F24,F16:F21,F12:F14) -> 3400 | G67: =SUM(G65:G66,G56:G63,G53:G54,G50:G51,G44:G48,G40:G42,G38,G31:G36,G26:G29,G23:G24,G16:G21,G12:G14) -> 500 | H67: 1400 | I67: 2000
A69: Excess/Deficit | B69: =SUM(B5-B67) -> 0 | D69: =SUM(D5-D67) -> 0 | F69: =SUM((F6+F7+F8+F9)-F67) -> 0 | G69: =SUM((G6+G7+G8+G9)-G67) -> 0 | H69: 0 | I69: 0

Sheet Blank
E3: Name
B4: BUDGET | D4: ACTUAL | E4: Date
A5: INCOME | B5: =SUM(B6:B9) -> 0 | D5: =SUM(D6:D7) -> 0
A6: Salary 1
A7: Salary 2
A10: EXPENSES | B10: =B49+B43+B11+B15+B22+B25+B52+B30+B37+B64+B39+B55 -> 0 | D10: =D49+D43+D11+D15+D22+D25+D52+D30+D64+D39+D55 -> 0
A11: HOUSING | B11: =SUM(B12:B14) -> 0 | D11: =SUM(D12:D14) -> 0
A12: Mortgage/Rent
A13: Lawncare
A14: Household Repairs/Maintenance
A15: UTILITIES | B15: =SUM(B16:B21) -> 0 | D15: =SUM(D16:D21) -> 0
A16: Electricity
A17: Water
A18: Gas
A19: Cell Phone
A20: Home Security
A21: Cable/Internet
A22: GROCERIES/HOUSEHOLD SUPPLIES | B22: =SUM(B23:B24) -> 0 | D22: =SUM(D23:D24) -> 0
A23: Groceries
A24: Household Supplies
A25: TRANSPORTATION | B25: =SUM(B26:B29) -> 0 | D25: =SUM(D26:D29) -> 0
A26: Gasoline
A27: Auto Service & Repairs
A28: Car Insurance
A29: License Plates & Registrations
A30: INSURANCE/MEDICAL | B30: =SUM(B31:B36) -> 0 | D30: =SUM(D32:D36) -> 0
A31: Homeowners/Renter's Insurance
A32: Disability Insurance
A33: Health Insurance
A34: Doctor/Dentist
A35: Medications
A36: Life Insurance
A37: SAVINGS | B37: =SUM(B38) -> 0 | D37: =SUM(D38) -> 0
A38: Emergency Fund
A39: DEBTS | B39: =SUM(B40:B42) -> 0 | D39: =SUM(D40:D42) -> 0
A40: Car Payment
A41: Credit Card
A42: Student Loan
A43: FUTURE SAVINGS | B43: =SUM(B44:B48) -> 0 | D43: =SUM(D44:D48) -> 0
A44: House Down Payment
A45: New Car Savings
A46: Vacations
A47: Other
A48: Children's Expenses
A49: CHARITABLE GIFTS | B49: =SUM(B50:B51) -> 0 | D49: =SUM(D50:D51) -> 0
A50: Charity 1
A51: Charity 2
A52: CLOTHING | B52: =SUM(B53:B54) -> 0 | D52: =SUM(D53:D54) -> 0
A53: Clothing
A54: Dry Cleaning
A55: PERSONAL | B55: =SUM(B56:B63) -> 0 | D55: =SUM(D56:D61) -> 0
A56: Household Furnishings
A57: Pocket Money
A58: Personal Care
A59: Education
A60: Gifts
A61: Pets
A62: Subscriptions
A63: Miscellaneous
A64: RECREATION | B64: =SUM(B65:B66) -> 0 | D64: =SUM(D65:D66) -> 0
A65: Restaurants/Eating Out
A66: Entertainment
A67: Subtotal | B67: =SUM(B65:B66,B56:B63,B53:B54,B50:B51,B44:B48,B40:B42,B38,B31:B36,B26:B29,B23:B24,B16:B21,B12:B14) -> 0 | D67: =SUM(D65:D66,D56:D63,D53:D54,D50:D51,D44:D48,D40:D42,D38,D32:D36,D26:D29,D23:D24,D16:D21,D12:D14) -> 0 | F67: =SUM(F65:F66,F56:F63,F53:F54,F50:F51,F44:F48,F40:F42,F38,F31:F36,F26:F29,F23:F24,F16:F21,F12:F14) -> 0 | G67: =SUM(G65:G66,G56:G63,G53:G54,G50:G51,G44:G48,G40:G42,G38,G31:G36,G26:G29,G23:G24,G16:G21,G12:G14) -> 0 | H67: 0 | I67: 0
A69: Excess/Deficit | B69: =SUM(B5-B67) -> 0 | D69: =SUM(D5-D67) -> 0 | F69: =SUM((F6+F7+F8+F9)-F67) -> 0 | G69: =SUM((G6+G7+G8+G9)-G67) -> 0 | H69: 0 | I69: 0
